[Event "7th Sharjah Challengers 2024"]
[Site "Sharjah"]
[Date "2024.05.21"]
[Round "8.1"]
[White "Burmakin, Vladimir"]
[Black "Divya Deshmukh"]
[Result "1/2-1/2"]
[ECO "D45"]
[WhiteElo "2483"]
[BlackElo "2443"]
[Annotator "TA"]
[PlyCount "69"]
[EventDate "2024.05.13"]
[EventType "swiss"]
[EventCountry "UAE"]
[SourceTitle "playchess.com"]
[Source "ChessBase"]
[SourceQuality "1"]
[TimeControl "5400+30"]

{[%evp 26,69,6,0,0,-16,0,-13,-29,-35,53,47,50,51,47,41,52,38,37,34,47,35,40,44,86,20,80,49,66,56,63,6,27,3,19,8,6,0,9,0,7,10,48,-35,-47,-42]} 1. Nf3 {[%emt 0:00:03]} d5 {[%emt 0:00:07]} 2. b3 {[%emt 0:01:19]} Nf6 {[%emt 0:09:07]} 3. Bb2 {[%emt 0:00:13]} c6 {[%emt 0:01:06]} 4. c4 {[%emt 0:01:05]} e6 {[%emt 0:00:46]} 5. e3 {[%emt 0:00:36]} Bd6 {[%emt 0:00:18]} 6. d4 {[%emt 0:00:37]} Nbd7 {[%emt 0:01:33]} 7. Be2 {[%emt 0:08:23]} Qe7 {[%emt 0:00:16]} 8. Nc3 {[%emt 0:06:06]} O-O {[%emt 0:02:11]} 9. O-O {[%emt 0:00:31]} b6 {[%emt 0:04:24]} 10. Qc2 {[%emt 0:14:57]} Bb7 {[%emt 0:01:19]} 11. Rad1 {[%emt 0:02:42]} Rfe8 {[%emt 0:05:30]} 12. e4 {[%emt 0:03:34]} Nxe4 {[%emt 0:05:28]} 13. Nxe4 {[%emt 0:00:02]} dxe4 {[%emt 0:00:03]} 14. Qxe4 {[%emt 0:00:06]} Nf8 {[%emt 0:01:38][%cal Bd7f8,Bf8g6,Bg6e7,Be7d5][%mdl 32]} 15. Qe3 {[%emt 0:24:59]} Rad8 {[%emt 0:06:30]} 16. Qc3 {[%emt 0:02:55][%cal Oc4c5]} f6 {[%emt 0:06:02] The position is equal.} 17. Qc2 {[%emt 0:04:46]} Qf7 {[%emt 0:04:18]} (17... c5 $15) 18. c5 $14 {[%emt 0:00:23]} Bb8 {[%emt 0:01:24]} 19. Nd2 {[%emt 0:01:14]} Ng6 {[%emt 0:02:25]} 20. g3 {[%emt 0:01:09]} Ne7 {[%emt 0:02:26]} 21. Rfe1 {[%emt 0:00:30]} Nd5 {[%emt 0:00:41]} 22. a3 {[%emt 0:00:44]} bxc5 {[%emt 0:05:27]} 23. Qxc5 {[%emt 0:01:42]} Qg6 {[%emt 0:01:29]} 24. Bf1 {[%emt 0:00:51]} Kh8 {[%emt 0:02:43]} 25. Ne4 {[%emt 0:06:09]} (25. Bg2 $16) 25... Re7 {[%emt 0:11:27]} (25... f5 $11 {keeps the balance.} 26. Nd2 f4) 26. Qc1 {[%emt 0:00:57]} h5 {[%emt 0:02:58]} 27. Nc5 {[%emt 0:00:21][%cal Oc5b7]} Bc8 {[%emt 0:00:02]} 28. Qb1 {[%emt 0:01:28]} ({White should try} 28. Qd2 $14) 28... f5 {[%emt 0:01:11]} 29. Qd3 {[%emt 0:03:38]} h4 {[%emt 0:01:25]} 30. Qf3 {[%emt 0:00:27]} Kg8 {[%emt 0:03:35]} 31. Be2 {[%emt 0:01:34]} Bd6 {[%emt 0:02:15]} 32. Rc1 {[%emt 0:00:24]} Rf8 {[%emt 0:01:48]} 33. Qh5 {[%emt 0:00:32]} Qf6 {[%emt 0:00:22]} 34. Nd3 {[%emt 0:01:10]} (34. Qxh4 $14 Qxh4 35. gxh4) 34... hxg3 $1 $15 {[%emt 0:02:47]} 35. fxg3 {[%emt 0:03:15] Weighted Error Value: White=0.22 (precise) /Black=0.18 (very precise) .  Mistake:       	White=3     	Black=2      Inaccurate:     	White=1     	Black=2      OK:         	White=3     	Black=3      Best:        	White=1     	---        Strong:       	---       	Black=1} 1/2-1/2

[Event "7th Sharjah Challengers 2024"]
[Site "Sharjah"]
[Date "2024.05.21"]
[Round "8.2"]
[White "Nitish Belurkar"]
[Black "Garifullina, Leya"]
[Result "0-1"]
[ECO "B90"]
[WhiteElo "2451"]
[BlackElo "2431"]
[Annotator "RC"]
[PlyCount "76"]
[EventDate "2024.05.13"]
[EventType "swiss"]
[EventCountry "UAE"]
[SourceTitle "playchess.com"]
[Source "ChessBase"]
[SourceQuality "1"]
[TimeControl "5400+30"]

1. e4 {[%emt 0:00:03]} c5 {[%emt 0:00:21]} 2. Nf3 {[%emt 0:00:10]} d6 {[%emt 0:00:07]} 3. d4 {[%emt 0:00:02]} cxd4 {[%emt 0:00:09]} 4. Nxd4 {[%emt 0:00:03]} Nf6 {[%emt 0:00:09]} 5. Nc3 {[%emt 0:00:03]} a6 {[%emt 0:00:06]} 6. h3 {[%emt 0:00:09]} e5 {[%emt 0:00:07]} 7. Nf3 {[%emt 0:00:04]} Be7 {[%emt 0:00:18]} 8. g4 {[%emt 0:00:56]} h6 {[%emt 0:00:06]} 9. Rg1 {[%emt 0:00:04]} b5 {[%emt 0:00:06]} 10. g5 {[%emt 0:00:28]} hxg5 {[%emt 0:00:06]} 11. Nxg5 {[%emt 0:00:06]} Bb7 {[%emt 0:00:05]} 12. Be3 {[%emt 0:00:16]} Qc7 {[%emt 0:01:18]} 13. Qd2 {[%emt 0:00:24]} Nbd7 {[%emt 0:00:48]} 14. O-O-O {[%emt 0:00:12]} b4 {[%emt 0:03:50]} 15. Nd5 {[%emt 0:02:26]} Nxd5 {[%emt 0:00:10]} 16. exd5 {[%emt 0:00:04]} Nf6 {[%emt 0:00:07]} 17. Bg2 {[%emt 0:27:59]} Bc8 {[%emt 0:00:15]} 18. Qxb4 {[%emt 0:06:37]} Rb8 {[%emt 0:00:51]} 19. Qa3 {[%emt 0:10:03]} Bf5 {[%emt 0:06:44]} 20. Rd2 {[%emt 0:03:10]} O-O {[%emt 0:08:14]} 21. Kb1 {[%emt 0:00:46]} Rb5 {[%emt 0:06:20]} 22. b3 {[%emt 0:06:16]} Rfb8 {[%emt 0:01:24]} 23. Ka1 {[%emt 0:09:50]} a5 {[%emt 0:06:47]} 24. c4 {[%emt 0:03:01]} Qxc4 {[%emt 0:02:55]} 25. Bf1 {[%emt 0:07:25]} Qb4 {[%emt 0:07:02]} 26. Qxb4 {[%emt 0:01:56]} Rxb4 {[%emt 0:00:05]} 27. Bc4 {[%emt 0:04:33]} Nd7 {[%emt 0:03:39]} 28. f3 {[%emt 0:02:23]} Nb6 {[%emt 0:08:49]} 29. Bd3 {[%emt 0:00:37]} Bxd3 {[%emt 0:01:14]} 30. Rxd3 {[%emt 0:00:01]} a4 {[%emt 0:00:29]} 31. Rg4 {[%emt 0:03:37]} Rb5 {[%emt 0:01:34]} 32. Bxb6 {[%emt 0:00:09]} R5xb6 {[%emt 0:01:39]} 33. Kb2 {[%emt 0:00:29]} f5 {[%emt 0:00:32]} 34. Rg2 {[%emt 0:06:43]} Bf6 {[%emt 0:00:39]} 35. Kc2 {[%emt 0:00:03]} Ra6 {[%emt 0:01:42]} 36. bxa4 {[%emt 0:03:29]} Rxa4 {[%emt 0:00:14]} 37. a3 {[%emt 0:00:15]} e4 {[%emt 0:00:07]} 38. Rb3 {[%emt 0:00:07]} Rc4+ {[%emt 0:00:05]} 0-1

[Event "7th Sharjah Challengers 2024"]
[Site "Sharjah"]
[Date "2024.05.21"]
[Round "8.3"]
[White "Wang, Yanbin"]
[Black "Lashkin, Jegor"]
[Result "1/2-1/2"]
[ECO "D40"]
[WhiteElo "2415"]
[BlackElo "2449"]
[Annotator "RC"]
[PlyCount "99"]
[EventDate "2024.05.13"]
[EventType "swiss"]
[EventCountry "UAE"]
[SourceTitle "playchess.com"]
[Source "ChessBase"]
[SourceQuality "1"]
[TimeControl "5400+30"]

1. Nf3 {[%emt 0:00:04]} d5 {[%emt 0:00:16]} 2. e3 {[%emt 0:00:05]} c5 {[%emt 0:00:31]} 3. d4 {[%emt 0:00:15]} Nf6 {[%emt 0:01:21]} 4. c4 {[%emt 0:01:11]} e6 {[%emt 0:02:16]} 5. Nc3 {[%emt 0:00:09]} Nc6 {[%emt 0:04:09]} 6. a3 {[%emt 0:03:35]} dxc4 {[%emt 0:01:40]} 7. Bxc4 {[%emt 0:00:33]} a6 {[%emt 0:01:10]} 8. O-O {[%emt 0:05:58]} b5 {[%emt 0:00:39]} 9. Ba2 {[%emt 0:04:45]} Bb7 {[%emt 0:00:33]} 10. Qe2 {[%emt 0:01:57]} Qc7 {[%emt 0:24:57]} 11. d5 {[%emt 0:04:30]} exd5 {[%emt 0:03:31]} 12. Nxd5 {[%emt 0:00:00]} Nxd5 {[%emt 0:00:13]} 13. Bxd5 {[%emt 0:00:00]} Be7 {[%emt 0:05:44]} 14. e4 {[%emt 0:03:42]} O-O {[%emt 0:00:35]} 15. Rd1 {[%emt 0:04:22]} Rad8 {[%emt 0:03:24]} 16. Be3 {[%emt 0:03:24]} Na5 {[%emt 0:04:01]} 17. Qc2 {[%emt 0:08:26]} Bxd5 {[%emt 0:04:53]} 18. exd5 {[%emt 0:03:31]} Nc4 {[%emt 0:14:11]} 19. Bg5 {[%emt 0:08:29]} h6 {[%emt 0:05:56]} 20. Bxe7 {[%emt 0:03:15]} Qxe7 {[%emt 0:00:01]} 21. Rac1 {[%emt 0:01:21]} Rc8 {[%emt 0:00:43]} 22. b3 {[%emt 0:16:07]} Nxa3 {[%emt 0:08:08]} 23. Qb2 {[%emt 0:02:07]} b4 {[%emt 0:00:10]} 24. d6 {[%emt 0:00:10]} Qe6 {[%emt 0:02:43]} 25. Qe5 {[%emt 0:01:43]} Rfd8 {[%emt 0:10:21]} 26. Qxe6 {[%emt 0:03:43]} fxe6 {[%emt 0:00:01]} 27. Ne5 {[%emt 0:00:29]} Nb5 {[%emt 0:00:01]} 28. d7 {[%emt 0:00:40]} Rc7 {[%emt 0:00:02]} 29. Ra1 {[%emt 0:00:52]} Nd4 {[%emt 0:00:37]} 30. Rxa6 {[%emt 0:00:46]} Rcxd7 {[%emt 0:00:54]} 31. Nxd7 {[%emt 0:00:02]} Rxd7 {[%emt 0:00:01]} 32. Kf1 {[%emt 0:00:10]} Kf7 {[%emt 0:00:17]} 33. Rc6 {[%emt 0:01:17]} Rd5 {[%emt 0:00:16]} 34. Rxc5 {[%emt 0:00:44]} Rxc5 {[%emt 0:00:05]} 35. Rxd4 {[%emt 0:00:02]} Rc1+ {[%emt 0:01:19]} 36. Ke2 {[%emt 0:00:02]} Rc2+ {[%emt 0:00:08]} 37. Ke1 {[%emt 0:00:39]} Rc1+ {[%emt 0:00:15]} 38. Kd2 {[%emt 0:00:12]} Rh1 {[%emt 0:01:38]} 39. h4 {[%emt 0:03:25]} Rh2 {[%emt 0:00:45]} 40. Rf4+ {[%emt 0:00:11]} Ke7 {[%emt 0:01:02]} 41. Rg4 {[%emt 0:00:06]} h5 {[%emt 0:00:45]} 42. Rxg7+ {[%emt 0:01:35]} Kf6 {[%emt 0:00:01]} 43. Rg8 {[%emt 0:00:11]} Rxh4 {[%emt 0:00:03]} 44. Ke3 {[%emt 0:01:21]} e5 {[%emt 0:00:54]} 45. Rh8 {[%emt 0:01:04]} Kg6 {[%emt 0:00:42]} 46. g3 {[%emt 0:02:45]} Rd4 {[%emt 0:00:09]} 47. f4 {[%emt 0:00:14]} Rd1 {[%emt 0:00:16]} 48. fxe5 {[%emt 0:01:47]} Rb1 {[%emt 0:00:12]} 49. Rf8 {[%emt 0:01:33]} Rxb3+ {[%emt 0:00:06]} 50. Ke4 {[%emt 0:12:01]} 1/2-1/2

[Event "7th Sharjah Challengers 2024"]
[Site "Sharjah"]
[Date "2024.05.21"]
[Round "8.4"]
[White "Harsh Suresh"]
[Black "Delgado Ramirez, Neuris"]
[Result "1/2-1/2"]
[ECO "D27"]
[WhiteElo "2417"]
[BlackElo "2489"]
[Annotator "TA"]
[PlyCount "134"]
[EventDate "2024.05.13"]
[EventType "swiss"]
[EventCountry "UAE"]
[SourceTitle "playchess.com"]
[Source "ChessBase"]
[SourceQuality "1"]
[TimeControl "5400+30"]

{[%evp 46,134,89,60,68,21,19,29,25,29,25,21,22,0,0,0,0,0,0,0,0,0,0,0,0,0,3,0,0,0,4,0,0,0,0,0,0,0,0,0,0,0,8,0,0,0,8,-8,-8,-8,-6,-23,-23,-23,-8,-8,-8,-8,-8,-8,-8,-81,-81,-285,0,0,0,-11,0,0,0,0,0,-8,0,0,0,0,0,0,0,0,0,0,0,-8,-8,-8,0,0,8]} 1. e4 {[%emt 0:00:16]} c5 {[%emt 0:00:05]} 2. Nf3 {[%emt 0:00:11]} a6 {[%emt 0:00:06]} 3. c3 {[%emt 0:14:15]} d5 {[%emt 0:01:39]} 4. exd5 {[%emt 0:02:10]} Qxd5 {[%emt 0:00:05]} 5. d4 {[%emt 0:01:02]} e6 {[%emt 0:00:42]} 6. Be2 {[%emt 0:02:55]} cxd4 {[%emt 0:00:14]} 7. cxd4 {[%emt 0:01:09]} Nf6 {[%emt 0:00:08]} 8. Nc3 {[%emt 0:00:27]} Qd8 {[%emt 0:00:08]} 9. O-O {[%emt 0:02:10]} Nc6 {[%emt 0:00:54]} 10. Bg5 {[%emt 0:04:45]} Be7 {[%emt 0:00:21]} 11. Rc1 {[%emt 0:00:32] D27: Queen's Gambit Accepted: Classical main line: 7 e4!? and 7 a4.} O-O {[%emt 0:01:43]} 12. Bh4 {[%emt 0:04:58]} Nh5 $146 {[%emt 0:10:11]} ({Predecessor:} 12... b6 13. a3 Bb7 14. Bd3 Rc8 15. Bb1 Nd5 16. Bxe7 Ncxe7 17. Qd2 Nxc3 18. bxc3 Bxf3 19. Qd3 g6 20. Qxf3 {0-1 Rizouk,A (2312)-Sundararajan,K (2334) Wch U20 Yerevan 1999 (12)}) 13. Bxe7 {[%emt 0:14:34]} Nxe7 {[%emt 0:00:13]} 14. Ne5 {[%emt 0:01:16]} Nf6 {[%emt 0:00:04]} 15. Bf3 {[%emt 0:00:50]} Nf5 {[%emt 0:27:02]} 16. d5 {[%emt 0:11:46]} Nh4 {[%emt 0:00:20]} 17. dxe6 {[%emt 0:10:49]} Nxf3+ {[%emt 0:00:10]} 18. Qxf3 {[%emt 0:00:26]} Bxe6 {[%emt 0:00:04]} 19. Qxb7 {[%emt 0:03:11]} Qd6 {[%emt 0:00:44]} 20. Nc6 {[%emt 0:03:48]} Bd7 {[%emt 0:01:25]} 21. Ne2 {[%emt 0:02:03]} Rac8 {[%emt 0:06:37]} 22. Ned4 {[%emt 0:01:46]} Ng4 {[%emt 0:00:44]} 23. g3 {[%emt 0:00:46]} Rce8 {[%emt 0:02:47]} 24. Qb4 {[%emt 0:04:23]} (24. Qxa6 Qh6 25. h4 Nxf2 $15) 24... Qf6 {[%emt 0:04:36]} 25. Qd2 {[%emt 0:00:25]} (25. Rc5 $14 {is superior.}) 25... Ne5 $11 {[%emt 0:02:05]} 26. Nxe5 {[%emt 0:01:39]} Rxe5 {[%emt 0:00:22]} 27. Nf3 {[%emt 0:03:58]} Re7 {[%emt 0:00:18]} 28. Qc3 {[%emt 0:01:51]} Qxc3 {[%emt 0:01:34]} 29. Rxc3 {[%emt 0:00:46]} Re2 $1 {[%emt 0:00:13]} 30. Rd1 {[%emt 0:01:44]} Bh3 {[%emt 0:02:01]} 31. Rd2 {[%emt 0:01:48]} Rxd2 $1 {[%emt 0:03:24]} 32. Nxd2 {[%emt 0:00:01]} Rd8 {[%emt 0:00:07]} 33. Re3 {[%emt 0:00:28]} Be6 {[%emt 0:02:40]} 34. Nb3 {[%emt 0:00:23]} Rd1+ {[%emt 0:00:36]} 35. Kg2 {[%emt 0:00:01]} g5 {[%emt 0:00:07]} 36. f3 {[%emt 0:00:55]} Kg7 {[%emt 0:01:46]} 37. g4 {[%emt 0:00:17]} Bd5 {[%emt 0:01:03]} 38. h3 {[%emt 0:01:08]} h5 {[%emt 0:00:29]} 39. gxh5 {[%emt 0:00:48]} f5 {[%emt 0:00:52]} 40. Kf2 {[%emt 0:00:13]} Kh6 {[%emt 0:03:01]} 41. Nc5 {[%emt 0:02:18]} Bxa2 {[%emt 0:01:52]} 42. Re5 {[%emt 0:00:14]} (42. Nxa6 Rd2+ (42... Kxh5 43. Nc5 $11) 43. Ke1 Rxb2 $17) 42... Bb1 {[%emt 0:02:27]} 43. Nxa6 {[%emt 0:00:30]} Kxh5 {[%emt 0:00:54]} 44. Re8 {[%emt 0:00:31]} Rd2+ {[%emt 0:00:26]} 45. Re2 {[%emt 0:00:13]} Rd6 {[%emt 0:01:26]} 46. Nb4 {[%emt 0:00:26]} f4 {[%emt 0:00:38]} 47. Nc2 {[%emt 0:00:47]} Ba2 {[%emt 0:01:04]} 48. Ne1 {[%emt 0:00:29]} Be6 {[%emt 0:00:23]} 49. Kg2 {[%emt 0:00:05]} Bc4 {[%emt 0:01:01]} 50. Rc2 {[%emt 0:00:26]} Bb3 {[%emt 0:00:08]} 51. Re2 {[%emt 0:00:06]} Rd1 {[%emt 0:00:07]} 52. Kf2 {[%emt 0:00:28]} Kh4 {[%emt 0:02:00]} 53. Re8 {[%emt 0:01:07]} (53. Re5 $1 $11) 53... Rd2+ $17 {[%emt 0:00:27]} (53... Kxh3 54. Rh8#) 54. Re2 $2 {[%emt 0:00:02]} (54. Kg1 $17) 54... Rd8 $2 {[%emt 0:00:14]} (54... Rxe2+ $19 55. Kxe2 Kg3 (55... Kxh3 56. Kf2 $11)) 55. Re7 $11 {[%emt 0:01:25]} Kh5 {[%emt 0:00:03]} ({Not} 55... Kxh3 56. Rh7#) 56. Re2 {[%emt 0:00:10]} Bd1 {[%emt 0:00:09]} 57. Re5 {[%emt 0:00:24]} Rd2+ {[%emt 0:00:47]} 58. Kf1 {[%emt 0:00:22]} Kg6 {[%emt 0:01:14]} 59. b4 {[%emt 0:01:14]} Bb3 {[%emt 0:00:36]} 60. b5 {[%emt 0:00:53]} Bc4+ {[%emt 0:02:20]} 61. Kg1 {[%emt 0:00:03]} Rb2 {[%emt 0:00:13]} 62. h4 {[%emt 0:01:09]} gxh4 {[%emt 0:01:10]} 63. Ng2 {[%emt 0:00:01]} Rxb5 {[%emt 0:03:00]} 64. Nxh4+ {[%emt 0:00:18]} (64. Nxf4+ Kf6 65. Re4 Bg8) 64... Kf6 {[%emt 0:00:08]} 65. Rxb5 {[%emt 0:00:08]} Bxb5 {[%emt 0:00:03]} 66. Ng2 {[%emt 0:00:07]} Bc6 {[%emt 0:00:04]} 67. Nxf4 {[%emt 0:00:06]} Bxf3 {[%emt 0:00:04]} 1/2-1/2

[Event "7th Sharjah Challengers 2024"]
[Site "Sharjah"]
[Date "2024.05.21"]
[Round "8.5"]
[White "Viani Antonio Dcunha"]
[Black "Movahed, Sina"]
[Result "0-1"]
[ECO "B33"]
[WhiteElo "2394"]
[BlackElo "2464"]
[Annotator "TA"]
[PlyCount "102"]
[EventDate "2024.05.13"]
[EventType "swiss"]
[EventCountry "UAE"]
[SourceTitle "playchess.com"]
[Source "ChessBase"]
[SourceQuality "1"]
[TimeControl "5400+30"]

{[%evp 27,102,29,33,23,25,32,27,0,0,-4,0,0,0,0,0,0,0,0,0,0,0,0,0,0,0,0,0,0,0,0,0,0,0,0,0,0,0,0,14,0,0,0,0,0,33,26,14,18,25,-15,-5,-115,-105,-239,-251,-235,-232,-227,-233,-235,-237,-493,-487,-1069,-444,-418,-419,-586,-573,-566,-589,-1362,-1350,-2601,-2224,-1804,-1915]} 1. e4 {[%emt 0:00:15]} c5 {[%emt 0:00:08]} 2. Nf3 {[%emt 0:00:06]} e6 {[%emt 0:00:04]} 3. d4 {[%emt 1:31:39]} cxd4 {[%emt 0:00:02]} 4. Nxd4 {[%emt 0:00:00]} Nf6 {[%emt 0:00:05]} 5. Nc3 {[%emt 0:00:00]} Nc6 {[%emt 0:00:01]} 6. Ndb5 {[%emt 0:00:00][%cal Bd4b5,Bb5a3,Ba3c2,Bc2e3][%mdl 32]} d6 {[%emt 0:00:02]} 7. Bf4 {[%emt 0:00:00]} e5 {[%emt 0:00:02]} 8. Bg5 {[%emt 0:00:00]} a6 {[%emt 0:00:02]} 9. Na3 {[%emt 0:00:00]} b5 {[%emt 0:00:09]} 10. Nd5 {[%emt 0:00:00]} Be7 {[%emt 0:00:03]} 11. Bxf6 {[%emt 0:00:00]} Bxf6 {[%emt 0:00:03]} 12. c3 {[%emt 0:00:00]} O-O {[%emt 0:00:06]} 13. Nc2 {[%emt 0:00:00]} Rb8 {[%emt 0:00:02]} 14. h4 {[%emt 0:00:00][%cal Bh2h4,Bh4h5,Bh5h6][%mdl 32]} g6 {[%emt 0:00:32]} 15. g3 {[%emt 0:00:00]} Bg7 {[%emt 0:00:53]} 16. h5 {[%emt 0:00:00]} Ne7 {[%emt 0:00:26]} 17. h6 {[%emt 0:00:00] White has an edge.} Bh8 {[%emt 0:03:24]} 18. Nce3 {[%emt 0:00:00]} Bb7 {[%emt 0:02:45]} 19. Bg2 {[%emt 0:00:00]} Nxd5 {[%emt 0:10:06]} 20. Nxd5 {[%emt 0:00:00]} Re8 {[%emt 0:01:46]} 21. Qd3 {[%emt 0:00:00]} Bxd5 {[%emt 0:05:07]} 22. Qxd5 {[%emt 0:00:00]} Bf6 {[%emt 0:00:16]} 23. Rd1 {[%emt 0:00:00]} Rb6 {[%emt 0:00:19]} 24. Bf3 {[%emt 0:00:00]} Bg5 {[%emt 0:01:48]} 25. Kf1 {[%emt 0:00:00]} Qe7 {[%emt 0:04:07]} 26. Kg2 {[%emt 0:00:00]} Qf8 {[%emt 0:00:34]} 27. Rh2 {[%emt 0:00:00]} Rc8 {[%emt 0:01:18]} 28. a3 {[%emt 0:00:00]} a5 {[%emt 0:04:51]} (28... Bxh6 $6 29. Rdh1 Rc5 30. Qd3 $16) 29. Be2 {[%emt 0:00:00]} Rc5 {[%emt 0:02:29]} (29... Bxh6 30. Rdh1 (30. Bxb5 $2 Rc5 $19) 30... Rc5 31. Qd3 $14) 30. Qd3 {[%emt 0:00:00]} Qc8 {[%emt 0:05:42]} 31. Rhh1 {[%emt 0:00:00]} Rcc6 {[%emt 0:09:09]} 32. Ra1 {[%emt 0:00:00]} Qe6 {[%emt 0:06:38]} 33. Bd1 {[%emt 0:00:00]} a4 {[%emt 0:05:49]} 34. Bc2 {[%emt 0:00:00]} Rc5 {[%emt 0:08:54]} 35. Bb1 {[%emt 0:00:00]} Qc4 {[%emt 0:03:01]} 36. Qf3 {[%emt 0:00:00] [#] Ba2 would now be deadly.} d5 {[%emt 0:01:26]} 37. Qg4 {[%emt 0:02:25]} Be7 {[%emt 0:00:42]} 38. Qd7 {[%emt 0:00:22]} Bf8 {[%emt 0:02:51]} 39. Re1 {[%emt 0:02:20] [#] Prevents Qe2} (39. Qg4 $1 $11 {keeps the balance.}) 39... Qb3 $1 $17 {[%emt 0:04:01]} (39... Bxh6 $2 {perishes.} 40. Ba2 (40. Qd8+ Bf8 $18) 40... Qd3 41. Qd8+ (41. Bxd5 Rxd5 42. Qxd5 Qxd5 $18) (41. exd5 Rf6 $11) 41... Bf8 42. Qxb6 $18) (39... Rd6 $6 40. Qe8 Re6 41. Qb8 $14) 40. Ba2 {[%emt 0:05:12] Now White is beyond hope.} (40. exd5 $17 Qxd5+ (40... Rxd5 41. Qa7 $16) 41. Qxd5 Rxd5 42. Kf1) 40... Qxb2 $19 {[%emt 0:00:46] Strongly threatening ...Rf6.} 41. Bxd5 {[%emt 0:00:38]} Rf6 {[%emt 0:00:23]} ({Weaker is} 41... Bxh6 42. Qxf7+ Kh8 43. Qg8#) 42. Rf1 {[%emt 0:00:46]} Qxc3 {[%emt 0:02:54]} 43. Qg4 {[%emt 0:04:08] Wards off Qf3+} Bxh6 {[%emt 0:01:52]} 44. Rad1 $2 {[%emt 0:02:20]} (44. Qe2) 44... Qxa3 {[%emt 0:03:13] ...Rc2 is the strong threat.} 45. Rh1 {[%emt 0:00:06]} (45. Qe2 $142) 45... Bg7 {[%emt 0:00:47]} (45... Rxf2+ $142 46. Kh3 Rc3) 46. Qe2 {[%emt 0:00:40]} Rc3 {[%emt 0:02:48] Against Rd3. Threatens to win with ...Qc5.} 47. Rd2 {[%emt 0:00:52]} Qc5 {[%emt 0:00:45] Black is clearly winning.} 48. Ra1 {[%emt 0:01:29]} a3 {[%emt 0:00:38] Prevents Rb2} 49. Ba2 {[%emt 0:00:22]} Bh6 {[%emt 0:00:37]} 50. Rd5 {[%emt 0:00:11]} Rc2 {[%emt 0:00:27]} 51. Rxc5 {[%emt 0:00:53]} Rxe2 {[%emt 0:00:01] Weighted Error Value: White=0.76/Black=0.21 (precise) .  Mistake:       	White=4     	Black=1      Inaccurate:     	White=5     	Black=1      OK:         	White=15    	Black=24     Best:        	---       	Black=3      Strong:       	---       	Black=1} 0-1

[Event "7th Sharjah Challengers 2024"]
[Site "Sharjah"]
[Date "2024.05.21"]
[Round "8.6"]
[White "Ahmad, Al Khatib"]
[Black "Mukund Hemant Agarwal"]
[Result "0-1"]
[ECO "B55"]
[WhiteElo "2380"]
[BlackElo "2090"]
[Annotator "TA"]
[PlyCount "77"]
[EventDate "2024.05.13"]
[EventType "swiss"]
[EventCountry "UAE"]
[SourceTitle "playchess.com"]
[Source "ChessBase"]
[SourceQuality "1"]
[TimeControl "5400+30"]

{[%evp 17,77,24,19,20,21,11,20,5,16,12,4,4,6,5,14,0,14,13,12,8,8,12,4,0,5,0,0,0,0,0,2,-13,-6,-88,-88,-80,-95,-80,-83,-89,-76,-85,-60,-60,-60,-54,43,43,43,43,43,43,43,43,71,54,102,0,29995,29978,29967,6593]} 1. e4 {[%emt 0:00:03]} c5 {[%emt 0:00:01]} 2. Nf3 {[%emt 0:00:08]} d6 {[%emt 0:00:01]} 3. d4 {[%emt 0:00:10]} cxd4 {[%emt 0:00:01]} 4. Nxd4 {[%emt 0:00:10]} Nf6 {[%emt 0:00:02]} 5. Bd3 {[%emt 0:00:16]} Nc6 {[%emt 0:01:06]} 6. Nxc6 {[%emt 0:00:12]} bxc6 {[%emt 0:00:03]} 7. O-O {[%emt 0:00:18]} e5 {[%emt 0:04:23]} 8. c4 {[%emt 0:00:09]} Be7 {[%emt 0:00:27]} 9. Nc3 {[%emt 0:00:09]} O-O {[%emt 0:00:13]} 10. h3 {[%emt 0:05:40]} Be6 {[%emt 0:01:01]} 11. Be3 {[%emt 0:00:08]} d5 {[%emt 0:13:29]} 12. cxd5 {[%emt 0:14:07] The position is equal.} cxd5 {[%emt 0:00:08]} 13. exd5 {[%emt 0:00:15]} Nxd5 {[%emt 0:00:26]} 14. Nxd5 {[%emt 0:02:11]} Qxd5 {[%emt 0:00:55]} 15. b3 {[%emt 0:04:00]} Rfd8 {[%emt 0:23:36]} 16. Bc4 {[%emt 0:03:16]} Qe4 {[%emt 0:02:49]} 17. Qb1 {[%emt 0:02:08]} Qc6 {[%emt 0:03:14]} 18. Qb2 {[%emt 0:14:21]} Bxc4 $40 {[%emt 0:06:08][%mdl 128] Black attacks.} 19. Rac1 {[%emt 0:04:12]} Rab8 {[%emt 0:13:50]} 20. Qa1 {[%emt 0:09:34]} (20. Rxc4 $2 Qxc4 21. Bxa7 Rb5 $19) (20. Qc3 {simplifies} f5 21. Qxc4+ Qxc4 22. Rxc4 Rb7 23. g3) 20... Rb4 {[%emt 0:04:13]} 21. Rxc4 {[%emt 0:01:56]} Rxc4 {[%emt 0:00:28]} 22. bxc4 {[%emt 0:00:02]} Qxc4 {[%emt 0:00:51]} 23. Qxe5 {[%emt 0:01:32]} Bd6 {[%emt 0:03:01]} 24. Qa5 {[%emt 0:06:11]} (24. Qa1 {simplifies} Qa4 25. g3 Be7 26. Rc1) 24... Bc7 {[%emt 0:00:47]} 25. Qxa7 {[%emt 0:01:37] [#]} (25. Qg5 $11) 25... Bh2+ $1 $17 {[%emt 0:00:13]} 26. Kxh2 {[%emt 0:00:10]} Qxf1 {[%emt 0:00:02][%mdl 4096] Endgame. KQR-KQB} 27. a4 {[%emt 0:01:38][%cal Ba2a4,Ba4a5,Ba5a6,Ba6a7][%mdl 32] Prevents Qb5.} Qa1 {[%emt 0:05:19]} 28. a5 {[%emt 0:03:12]} Qe5+ {[%emt 0:01:17]} 29. f4 {[%emt 0:04:14]} Qe4 {[%emt 0:03:22]} 30. a6 $1 {[%emt 0:02:32]} Re8 {[%emt 0:01:04]} 31. Bf2 {[%emt 0:03:18]} Ra8 {[%emt 0:01:27]} (31... Qxf4+ 32. Bg3 Qf5 33. Qc7 $16) (31... Qc6 $1 $15 32. Qb6 Qxb6 33. Bxb6 Re4) 32. Qc7 $14 {[%emt 0:03:10][%mdl 1024] White has compensation.} h6 {[%emt 0:07:51][%cal Oe4e2]} ({Worse is} 32... Rxa6 33. Qd8+) ({Avoid the trap} 32... Qe2 $2 33. a7 $18) 33. a7 {[%emt 0:00:51]} Re8 {[%emt 0:01:01]} 34. Bc5 {[%emt 0:04:22]} Qa8 {[%emt 0:01:46]} 35. Bd6 {[%emt 0:03:34]} Re2 {[%emt 0:00:50][%csl Ge2][%cal Ra8g2]} 36. Qb8+ {[%emt 0:01:13]} Re8 {[%emt 0:00:02]} 37. Qxa8 {[%emt 0:02:33]} (37. f5 $16) 37... Rd8 {[%emt 0:03:33][%mdl 8192] [#]} 38. Qc8 Rxc8 {[%emt 0:00:00]} 39. Bb8 {[%emt 0:00:35][%mdl 32768] Weighted Error Value: White=0.14 (very precise) /Black=0.28 (precise) .  Loses game:     	---       	Black=1      Mistake:       	White=2     	Black=1      Inaccurate:     	---       	Black=1      OK:         	White=10    	Black=10     Best:        	White=3     	Black=3      Strong:       	White=1     	---        Brilliant:      	---       	Black=1     . Loss on time!?} 0-1